Cogmind - Beta 16.1 @@@ ROGUE MODE // 2026.02.17 @ 21:08:50 Player: Megaknight51 Result: Destroyed by as-71416 with Assembled Blade Performance ------------- Evolutions (0) 0 Regions Visited (3) 600 Robots Destroyed (30) 150 Value Destroyed (478) 478 Prototype IDs (3) 60 Alien Tech Used (0) 0 Bonus (0) 0 TOTAL SCORE: 1288 Bonus ------- None Cogmind --------- Core Integrity 0/250 Matter 276/300 Energy 71/100 System Corruption 2% Temperature Cool (0) Movement Rolling (105) Ox1 Location -10/Exiles Parts ------- > --- POWER (1) -------- (None) > --- PROPULSION (2) --- Wheel Compact Wheel > --- UTILITY (2) ------ High-capacity Storage Unit Light Armor Plating > --- WEAPON (2) ------- EM Pulse Gun > --- INVENTORY (20) --- Wheel Wheel Compact Wheel Large Storage Unit Structural Scanner Sensor Array Signal Interpreter Improved Terrain Scanner Splice Drone Bay Beam Cannon Beam Cannon Beam Cannon Autogun Autogun Autogun Autogun Datajack Peak State ------------ > --- POWER ------------ Ion Engine > --- PROPULSION ------- Wheel Wheel > --- UTILITY ---------- High-capacity Storage Unit Structural Scanner > --- WEAPON ----------- Autogun Autogun > --- INVENTORY -------- Light Nuclear Core Wheel Wheel Wheel Compact Wheel Compact Wheel Large Storage Unit Sensor Array Signal Interpreter Improved Terrain Scanner Light Armor Plating Splice Drone Bay EM Pulse Gun Beam Cannon Beam Cannon Beam Cannon Autogun Autogun Datajack Mining Laser [Rating: 12] Favorites ----------- Power Ion Engine Engine Ion Engine Propulsion Wheel Wheel Wheel Utility High-capacity Storage Unit Device Structural Scanner Storage High-capacity Storage Unit Protection Light Armor Plating Weapon Autogun Energy Gun Medium Laser Ballistic Gun Autogun Special Weapon Mining Laser Special Melee Weapon Datajack Build | -11 -10 -10 -10 ------- Run | Yrd Mat Min Exi Slots Evolved . | . . . . Power . | . . . . Propulsion . | . . . . Utility . | . . . . Weapon . | . . . . Parts Attached 28 | 7 17 3 1 Power 3 | 1 2 . . Engine 3 | 1 2 . . Core . | . . . . Reactor . | . . . . Propulsion 10 | 2 5 2 1 Treads . | . . . . Leg . | . . . . Wheel 10 | 2 5 2 1 Hover . | . . . . Flight . | . . . . Utility 6 | 2 3 1 . Device 2 | 1 1 . . Storage 3 | 1 2 . . Processor . | . . . . Hackware . | . . . . Protection 1 | . . 1 . Artifact . | . . . . Weapon 9 | 2 7 . . Energy Gun 2 | 1 1 . . Energy Cannon . | . . . . Ballistic Gun 5 | 1 4 . . Ballistic Cannon . | . . . . Launcher . | . . . . Special Weapon 1 | . 1 . . Impact Weapon . | . . . . Slashing Weapon . | . . . . Piercing Weapon . | . . . . Special Melee Weapon 1 | . 1 . . Unidentified Prototypes . | . . . . Parts Lost 7 | . 4 2 1 Power 1 | . 1 . . Propulsion 4 | . 2 2 . Utility 1 | . 1 . . Weapon 1 | . . . 1 Highest Loss Streak 2 | . 2 2 1 To Critical Strikes . | . . . . Average Backups 16 | 3 16 18 17 Power . | . 1 1 . Propulsion 4 | 1 5 3 2 Utility 4 | . 3 5 6 Weapon 6 | . 5 7 7 Tool/Special . | . . . . Unused Backups 14 | . 2 . 12 Power 1 | . . . 1 Propulsion 3 | . 1 . 2 Utility 4 | . . . 4 Weapon 6 | . 1 . 5 Tool/Special . | . . . . Average Slot Usage (%) 98 | . 98 100 92 Engine 12 | . 13 14 6 Wheel 27 | . 27 28 28 Device 9 | . 13 7 . Storage 14 | . 14 14 14 Protection 4 | . . 6 14 Energy Gun 6 | . 8 . 9 Ballistic Gun 15 | . 12 27 4 Special Weapon 5 | . 6 . 14 Peak Build Rating 12 | 7 11 12 11 Average Rating 9 | 5 9 11 9 On Entrance 7 | . 7 11 11 Avg Prop Armor Cover (%) . | . . . . Naked Turns . | . . . . Heaviest Build 54 | 14 52 54 52 Greatest Support 26 | 20 26 26 26 Greatest Overweight (x) 5 | . 5 2 1 Average Overweight (x) 1 | . 1 1 1 Largest Inventory Capacity 20 | 8 20 20 20 Average Capacity 18 | 7 19 20 20 Most Carried 20 | 7 20 20 18 Average Carried 16 | 3 16 18 17 Final Capacity 20 | 8 20 20 20 Final Carried 19 | 7 19 18 17 Class Distribution -------------------- 85% | Mutant 14% | Scavenger-Mutant Dominant Class ---------------- Mutant | -10/Materials Mutant | -10/Mines Mutant | -10/Exiles Resources | -11 -10 -10 -10 ----------- Run | Yrd Mat Min Exi Matter Collected 859 | 281 500 78 . Remotely . | . . . . Salvage Created 1025 | 132 760 133 . Parts 60 | 12 39 9 . Haulers Intercepted . | . . . . Recyclers Shooed 1 | . 1 . . Parts Field Recycled . | . . . . Retrieved Matter . | . . . . Parts Self-Destructed . | . . . . Prevented . | . . . . Parts Restored . | . . . . Kills | -11 -10 -10 -10 ------- Run | Yrd Mat Min Exi Combat Hostiles Destroyed 17 | . 14 3 . Guns 17 | . 14 3 . Classes Destroyed 6 | 2 4 . . Worker 2 | . 2 . . Builder 2 | . 2 . . Tunneler 4 | 4 . . . Recycler 5 | 1 3 1 . Swarmer 9 | . 6 3 . Grunt 8 | . 8 . . Best Kill Streak 4 | 3 4 4 . Combat Bots Only 3 | . 3 3 . Max Kills in Single Turn 2 | 1 2 2 . Gunslinging 1 | . 1 . . Exploded . | . . . . Melee . | . . . . Uniques/NPCs Destroyed . | . . . . Combat | -11 -10 -10 -10 -------- Run | Yrd Mat Min Exi Hostile Shots Fired 128 | . 90 34 4 Missed 28 | . 17 11 . Hits 100 | . 73 23 4 Melee 5 | . . 1 4 Projectile 95 | . 73 22 . Critical Strikes 1 | . 1 . . Damage Taken 1077 | . 694 271 112 Core 268 | . 191 46 31 Absorbed by Shields . | . . . . Core Remaining (%) 100 | 100 . . . Volleys Fired 185 | 11 87 6 81 Largest 2 | 2 2 2 1 Hottest 150 | 70 150 100 100 Shots Fired 262 | 22 149 10 81 Gun 235 | 22 126 8 79 Cannon . | . . . . Launcher . | . . . . Special 27 | . 23 2 2 Kinetic 107 | 11 88 8 . Thermal 76 | 11 61 2 2 Explosive . | . . . . Electromagnetic 79 | . . . 79 Robot Hit Streak 11 | 3 11 6 . Robot Miss Streak 7 | 1 7 1 . Penetration Max . | . . . . Secondary Targets 3 | . 3 . . Max Gunslinging Chain 1 | . 1 . . Shots Hit Robots 92 | 13 75 4 . Core Hits 44 | 7 32 5 . Critical Kills . | . . . . Critical Parts Destroyed . | . . . . Critical Strikes 4 | 1 3 . . Burn 4 | 1 3 . . Melee Attacks 1 | . 1 . . Impact . | . . . . Slashing . | . . . . Piercing . | . . . . Sneak Attacks 1 | . 1 . . Combat Hostiles . | . . . . Follow-up Attacks . | . . . . Damage Inflicted 1205 | 155 962 88 . Guns 1186 | 155 962 69 . Cannons . | . . . . Explosions . | . . . . Melee . | . . . . Ramming 19 | . . 19 . Kinetic 820 | 53 698 69 . Thermal 366 | 102 264 . . Explosive . | . . . . Electromagnetic . | . . . . Impact . | . . . . Slashing . | . . . . Piercing . | . . . . Highest Corruption 2 | . 2 2 2 Average Corruption 2 | . 2 2 2 Corruption Purged . | . . . . Corruption Blocked . | . . . . Effects 26 | . 14 10 2 Message Errors 8 | . 2 5 1 Matter Fused 4 | . 1 2 1 Heat Flow Errors 3 | . 2 1 . Energy Discharges 2 | . 2 . . Data Loss (minor) 5 | . 4 1 . Misfires 3 | . 3 . . Alerts 1 | . . 1 . Overload Shots . | . . . . Overflow Damage 3 | . . 3 . Projectiles . | . . . . Explosions . | . . . . Melee 3 | . . 3 . Knockbacks 1 | . . 1 . Impact 1 | . . 1 . Kinetic . | . . . . Secondary . | . . . . Self-Inflicted Damage 9 | . . 9 . Shots . | . . . . Rammed 2 | . . 2 . Targets Rammed 2 | . . 2 . Kicked . | . . . . Crushed . | . . . . Highest Temperature 383 | 70 383 142 145 Average Temperature 66 | 24 75 33 60 Received Heat Transfer 249 | . 147 102 . Effects 7 | . 7 . . Shutdowns 3 | . 3 . . Energy Bleed 1 | . 1 . . Interference 2 | . 2 . . Damage (minor) 1 | . 1 . . Siege Activations . | . . . . Martial Activations . | . . . . Shielding Activations . | . . . . Robots Disrupted . | . . . . Combat Hostiles . | . . . . Robots Corrupted . | . . . . Combat Hostiles . | . . . . Parts Fried . | . . . . Impact Corruptions 1 | . . 1 . Robots Melted . | . . . . Combat Hostiles . | . . . . Parts Melted 2 | . 2 . . Heat Transferred 1369 | 370 999 . . Parts Sabotaged . | . . . . Parts Stolen . | . . . . Parts Stripped . | . . . . Power Chain Reactions . | . . . . Alert | -11 -10 -10 -10 ------- Run | Yrd Mat Min Exi Maximum Alert Level . | . . . . Low Security (%) 100 | 100 100 100 . Level 1 . | . . . . Level 2 . | . . . . Level 3 . | . . . . Level 4 . | . . . . Level 5 . | . . . . High Security . | . . . . Max Security . | . . . . Peak Influence 167 | 5 167 67 . Initial 63 | . . 63 . Average 27 | 1 34 19 . Influence Increases 677 | 25 516 136 . Destroy 0b10 Robot/C 340 | . 280 60 . Destroy 0b10 Robot/NC 65 | 25 35 5 . Destroy Leader 70 | . 60 10 . Successful Hack 30 | . 30 . . Select Force Hacks 60 | . 60 . . Disable Machine 30 | . 30 . . Destroy Structure 22 | . 21 1 . Lose Combat Pursuer 60 | . . 60 . Influence Decreases 677 | 25 353 299 . Entered New Map 100 | . . 100 . Time Decay 504 | 25 280 199 . Lost Part 30 | . 30 . . Purge Threat 43 | . 43 . . Squads Dispatched 6 | . 5 1 . Investigation 3 | . 3 . . Extermination . | . . . . Reinforcement 2 | . 2 . . Assault 1 | . . 1 . Garrison . | . . . . Intercept . | . . . . Searches Triggered . | . . . . Construction Impeded . | . . . . Haulers Reinforced . | . . . . Active Scanning Responses . | . . . . Cargo Convoy Interrupts . | . . . . Stealth | -11 -10 -10 -10 --------- Run | Yrd Mat Min Exi Distress Signals 5 | . 5 . . Communications Jammed . | . . . . Distress Signals . | . . . . Times Spotted 41 | . 25 12 4 Peak Tracking Total 9 | . 5 4 9 Tactical Retreats 2 | . . 2 . Traps | -11 -10 -10 -10 ------- Run | Yrd Mat Min Exi Traps Triggered 3 | . 3 . . Indirectly . | . . . . Trap Hack Attempts . | . . . . Triggered . | . . . . Disarmed . | . . . . Reprogrammed . | . . . . Reused . | . . . . Traps Extracted . | . . . . Installed . | . . . . Triggered . | . . . . Machines | -11 -10 -10 -10 ---------- Run | Yrd Mat Min Exi Machines Disabled 3 | . 2 . 1 Max in Single Turn 1 | . 1 . 1 Machines Repaired . | . . . . Machines Dismantled . | . . . . Machines Sabotaged . | . . . . Overloaded Fab Kills . | . . . . Hacking | -11 -10 -10 -10 --------- Run | Yrd Mat Min Exi Machines Accessed 10 | . 9 1 . Terminals 7 | . 7 . . Fabricators . | . . . . Repair Stations . | . . . . Recycling Units 2 | . 2 . . Scanalyzers . | . . . . Garrison Access . | . . . . Total Hacks 28 | . 27 1 . Successful 12 | . 11 1 . Failed 15 | . 15 . . Catastrophic 2 | . 2 . . Database Lockouts 1 | . 1 . . Manual 18 | . 18 . . Terminals 24 | . 24 . . Fabricators . | . . . . Repair Stations . | . . . . Recycling Units 3 | . 3 . . Scanalyzers . | . . . . Garrison Access . | . . . . Terminal Hacks 6 | . 5 1 . Prototype ID Bank 2 | . 2 . . Open Door 1 | . . 1 . Terminal Index 1 | . 1 . . Unreport Threat 1 | . 1 . . Hauler Manifests 1 | . 1 . . Fabricator Hacks . | . . . . Repair Station Hacks . | . . . . Recycling Unit Hacks . | . . . . Scanalyzer . | . . . . Garrison Access Hacks . | . . . . Unauthorized Hacks 6 | . 6 . . Terminals 4 | . 4 . . Botnet 4 | . 4 . . Fabricators . | . . . . Repair Stations . | . . . . Recycling Units 2 | . 2 . . Tunnel 2 | . 2 . . Scanalyzers . | . . . . Garrison Access . | . . . . Data Cores Recovered . | . . . . Used . | . . . . Hacking Detections 8 | . 8 . . Full Trace Events 1 | . 1 . . Feedback Events . | . . . . Feedback Blocked . | . . . . Robot Schematics Acquired . | . . . . Robots Built . | . . . . Authchips . | . . . . Time . | . . . . Total Robot Build Rating . | . . . . Part Schematics Acquired . | . . . . Parts Built . | . . . . Authchips . | . . . . Time . | . . . . Total Part Build Rating . | . . . . Part Studies Acquired . | . . . . Parts Repaired . | . . . . Time . | . . . . Parts Recycled . | . . . . Recycled Matter . | . . . . Retrieved Matter . | . . . . Retrieved Components . | . . . . Parts Scanalyzed . | . . . . Part Schematics Acquired . | . . . . Parts Damaged . | . . . . Bothacking | -11 -10 -10 -10 ------------ Run | Yrd Mat Min Exi Used RIF Installer . | . . . . Robots Hacked 1 | . 1 . . Non-combat 1 | . 1 . . Combat . | . . . . Robot Hacks Applied 1 | . 1 . . find_recycling 1 | . 1 . . Relay Couplers Released . | . . . . Fabnet Peak Effective % . | . . . . Robots Rewired . | . . . . Allies Hacked . | . . . . Hacks Repelled . | . . . . Allies | -11 -10 -10 -10 -------- Run | Yrd Mat Min Exi Total Allies 4 | . . 4 . Largest Group 3 | . . 3 . Highest-Rated Group 40 | . . 40 . Highest-Rated Ally 31 | . . 31 . Total Orders . | . . . . Ally Attacks 9 | . . 9 . Total Damage 59 | . . 59 . Kills 1 | . . 1 . Allies Corrupted . | . . . . Allies Melted . | . . . . Intel | -11 -10 -10 -10 ------- Run | Yrd Mat Min Exi Active Infowar (turns) 1544 | 12 1145 387 . Structural 1124 | . 737 387 . Seismic 420 | 12 408 . . Robot Analysis Total . | . . . . Derelict Logs Recovered . | . . . . Drone Launches . | . . . . Drone Recoveries . | . . . . Exploration | -11 -10 -10 -10 ------------- Run | Yrd Mat Min Exi Turns Passed 2484 | 119 1210 758 397 Spaces Moved 1636 | 90 728 638 180 Core 2 | 2 . . . Treads . | . . . . Legs . | . . . . Wheels 1634 | 88 728 638 180 Hover . | . . . . Flight . | . . . . Fastest Speed 50 | 50 80 105 105 Average Speed 106 | 79 106 111 105 Slowest Speed 155 | 80 155 120 105 Overloaded Moves . | . . . . Propulsion Burnouts . | . . . . Robots Hopped . | . . . . Potential Cave-ins 4 | . 2 2 . Cave-ins Triggered . | . . . . Exploration Rate (%) 57 | 3 97 91 40 Regions Visited 3 Branch Regions 2 Pre-discovered Areas 2 | . 2 . . Known Exits Taken . | . . . . Unknown Exits Taken 3 | 1 1 1 . Scrap Searched 1 | . . 1 . Spaces Dug 26 | . 22 2 2 Terrain Destroyed 26 | . 22 2 2 Melee . | . . . . Projectile 26 | . 22 2 2 AOE . | . . . . Terrain Rammed . | . . . . Walls Destroyed . | . . . . Machines Disabled . | . . . . Actions | -11 -10 -10 -10 --------- Run | Yrd Mat Min Exi Total 2069 | 114 982 669 304 Wait 170 | . 114 19 37 Move 1633 | 89 727 637 180 Hop . | . . . . Pick Up 23 | 7 15 1 . Fast Attach 9 | 7 2 . . Attach 4 | . 2 2 . Detach 1 | . . . 1 Swap 28 | . 24 2 2 Drop 13 | . 10 . 3 Fire 185 | 11 87 6 81 Melee 1 | . 1 . . Ram 2 | . . 2 . Kick . | . . . . Crush . | . . . . Escape Stasis . | . . . . Rewire . | . . . . Trap . | . . . . Miscellaneous . | . . . . Route ------- -11/Scrapyard -10/Materials (discovered 6 exits: [*Mat x3] / *Min x2 / [Sub]) -10/Mines (discovered 4 exits: [*Mat x2] / *Exi / [*Sub]) -10/Exiles History --------- Turn | Location | Event 11 | -11/Scrapyard | Discovered new exit (range 15) 120 | -11/Scrapyard | Entered Materials 298 | -10/Materials | Discovered new exit (range 4) 301 | -10/Materials | Build established: Mutant 301 | -10/Materials | Discovered new exit (range 9) 653 | -10/Materials | Discovered new exit (range 3) 728 | -10/Materials | Core integrity fell below 50% 874 | -10/Materials | Discovered new exit (range 3) 962 | -10/Materials | Discovered new exit (range 10) 1164 | -10/Materials | Discovered new exit (range 13) 1298 | -10/Materials | Central database locked down 1330 | -10/Materials | Entered Mines 1395 | -10/Mines | Discovered new exit (range 11) 1456 | -10/Mines | Found the Drone Emporium 1464 | -10/Mines | Found Prototype Device 1474 | -10/Mines | Met a Derelict testing a Signal Generator 1510 | -10/Mines | Assembled infested the area 1515 | -10/Mines | Assisted by a Guerilla fighting off Assembled 1555 | -10/Mines | Core integrity fell below 20% 1780 | -10/Mines | Discovered new exit (range 6) 1811 | -10/Mines | Assisted by bots powering up and referring to "LRC-V3" 2048 | -10/Mines | Discovered new exit (range 8) 2084 | -10/Mines | Deemed a non-threat by the Exiles lab entrance 2084 | -10/Mines | Discovered new exit (range 5) 2088 | -10/Mines | Entered Exiles 2115 | -10/Exiles | Met 8R-AWN 2132 | -10/Exiles | Met EX-HEX 2162 | -10/Exiles | Met EX-BIN 2446 | -10/Exiles | Attacked by the Exiles 2485 | -10/Exiles | Destroyed by as-71416 with Assembled Blade Last Messages --------------- It's pretty reliable so far, and once we've tweaked it to perfection it'll be much safer for us to move around anywhere in the complex. Want in on the action? Just step right into the FarCom Aligner and I'll do the rest. Now, I'll admit there could be side effects, but if you're willing to participate in the trials you can have one of our prototypes. How's that for a sweet deal? 02164_ EX-BIN: "Please do it. The faster we get more data and tweak this thing to perfection, the faster I can get back to my spacelab designs." 02197_ Dropped Lgt. Nuclear Core. 02263_ Dropped Wheel. 02273_ Dropped Ion Engine. 02383_ QZEG=QON&CVBJ7Y:0 W 0K>LCLRQ 02413_ System corrupted: Matter fused (-9). 02445_ HEX's Workstation disabled. 02446_ EXILES: Hostile robot within lab perimeter. Defensive protocols time, folks! 02466_ Connecting with HEX's Terminal... 02466_ Current location identified: Exiles 02482_ Mining Laser destroyed. Map ----- +----------------------------------------------------+ | | | | | | | | | | | | | | | | | | | | | | | | | | | | | | | | | | | ?????????????????????????????????????????????????? | | ?????????????????????????????????????????????????? | | ?????????????????????????????????????????????????? | | ?????????????????????????????????????????????????? | | ?????????????????????????????????????????????????? | | ?????????????????########????????????????????????? | | ?????????????????#X **#????????????????????????? | | ?????????????????## ###??????????????????????? | | ??????????????????# #@#??????????????????????? | | ??????????????????# #a#######????????????????? | | ??????????????????# ##a """"#????????????????? | | ??????????????????# ## """#????????????????? | | ??????????????????# X""#????????????????? | | ??????????????????# ## """#????????????????? | | ????????????####??# ##""""""#????????????????? | | ????????????"""""?# #########????????????????? | | ???????????"""" ## #????????????????????????? | | ??????????#""X" #????????????????????????? | | ??????????#" #????????????????????????? | | ??????????#" ## #????????????????????????? | | ??????????#""""""?# #????????????????????????? | | ???????????#"###??# #????????????????????????? | | ??????????????????# #???""""?????????????????? | | ??????????????????# #??"""""?????????????????? | | ?????????????????## ###"" """????????????????? | | ?????????????????#" """"???????????????? | | ?????????????????#" """???????????????? | | ?????????????????#" """???????????????? | | ?????????????????#" """???????????????? | | ?????????????????#" """???????????????? | | ?????????????????#" """???????????????? | | ?????????????????## """???????????????? | | ??????????????????# """???????????????? | +----------------------------------------------------+ Best States ------------- Heat Dissipation 25 Energy Generation 10 Energy Capacity 250 Matter Stores 300 Matter Capacity 300 Sight Range 16 Terrain Scan Density 10 Armor Coverage 150 Evasion (%) 44 Item Schematics ----------------- None Robot Schematics ------------------ None Fabricated ------------ Nothing Repaired ---------- Nothing Studied --------- None Alien Tech Used ----------------- None Achievements -------------- None Challenges ------------ None Game ------ Seed TargetExoskeletonCharger Manual? 0 Play Time 00:17:23 Cumulative 85.0 hours Start 2026.02.17 @ 20:50:33 End 2026.02.17 @ 21:08:50 Sessions 1 Manual Loads 0 Difficulty Rogue Special Mode None Game No. 173 Rogue 173 Adventurer 0 Explorer 0 Win Type - Total 1 Types 1/0/0/0/0/0/0/0/0/0 Lore% 49 Gallery% 38 Achievement% 38 Wizard Run 0 Options --------- Layout 0 ASCII 0 Keyboard 1 Movement Arrows Keybinds 0 Fullscreen 1 Font 18/Smallcaps Map View 76x50 Zoom Use 43% Tactical HUD 1 Map Filters NONE Filters NONE Steam 1 RUN: dbaa8f14-6277-46d8-b287-3ff63dd3803a